bitfinex-derivatives/quotes_SOLF0:USTF0_20251026
["timestamp","ask_amount","ask_price","bid_price","bid_amount"]
[1761480228364,4.70176013,198.07,197.91,2.82]
[1761480228563,16.14176013,198.14,197.93,2.82]
[1761480228757,11.44,198.13,197.95,2.82]
[1761480228959,11.44,198.13,197.97,2.82]
[1761480229160,11.44,198.13,197.99,2.82]
[1761480229361,16.14176013,198.13,198.0,4.38368117]
[1761480229564,16.14176013,198.13,198.01,4.38368117]
[1761480229761,16.14176013,198.13,198.02,4.38368117]
[1761480229956,16.14176013,198.13,198.03,4.38368117]
[1761480230157,16.14176013,198.13,198.04,4.38368117]
[1761480230363,16.14176013,198.13,198.05,4.38368117]
[1761480230564,16.14176013,198.13,198.06,4.38368117]
[1761480230766,16.14176013,198.13,197.99,2.82]
[1761480230961,11.44,198.13,198.0,4.98666501]
[1761480231162,11.44,198.13,198.01,4.98666501]
[1761480231371,11.44,198.13,198.02,4.98666501]
[1761480231563,11.44,198.13,198.03,4.98666501]
[1761480231870,11.44,198.13,198.04,4.98666501]
[1761480232066,16.14176013,198.13,198.05,4.98666501]
[1761480232275,16.14176013,198.13,198.06,4.98666501]
[1761480232463,16.14176013,198.13,198.07,4.98666501]
[1761480232772,16.14176013,198.13,197.99,2.82]
[1761480232969,11.44,198.13,198.01,2.82]
[1761480233165,11.44,198.13,198.02,7.80584436]
[1761480233470,11.44,198.13,198.03,4.98584436]
[1761480233769,11.44,198.13,198.04,4.98584436]
[1761480233972,11.44,198.13,198.05,4.98584436]
[1761480234266,11.44,198.13,198.06,4.98584436]
[1761480234474,11.44,198.13,198.07,4.98584436]
[1761480234679,11.44,198.13,198.08,4.98584436]
[1761480234872,11.44,198.13,198.09,4.98584436]
[1761480235072,11.44,198.13,198.02,2.82]
[1761480235374,11.44,198.13,198.03,4.98448385]
[1761480235569,11.44,198.13,198.04,4.98448385]
[1761480235762,11.44,198.13,198.05,4.98448385]
[1761480235960,11.44,198.13,198.06,4.98448385]
[1761480236167,11.44,198.13,198.07,4.98448385]
[1761480236368,11.44,198.13,198.08,4.98448385]
[1761480236575,11.44,198.13,197.98,2.82]
[1761480236776,11.44,198.13,198.0,2.82]
[1761480236972,11.44,198.13,198.01,4.98510515]
[1761480237175,11.44,198.13,198.02,4.98510515]
[1761480237474,11.44,198.13,198.0,2.82]
[1761480237475,11.44,198.13,198.03,4.98510515]
[1761480237678,11.44,198.13,198.04,4.98510515]
[1761480237877,11.44,198.13,198.05,4.98510515]
[1761480238171,11.44,198.13,198.06,4.98510515]
[1761480238371,11.44,198.13,198.07,4.98510515]
[1761480238675,11.44,198.13,198.0,2.82]
[1761480238877,0.87890995,198.12,198.01,4.98672833]
[1761480239176,0.87890995,198.12,198.02,4.98672833]
[1761480239473,0.87890995,198.12,198.03,4.98672833]
[1761480239686,0.87890995,198.12,198.04,4.98672833]
[1761480239869,0.87890995,198.12,198.05,4.98672833]
[1761480240070,0.87890995,198.12,198.06,4.98672833]
[1761480240273,0.87890995,198.12,198.07,4.98672833]
[1761480240471,0.87890995,198.12,198.0,2.82]
[1761480240672,0.87890995,198.12,198.01,4.98866431]
[1761480240875,0.87890995,198.12,198.02,4.98866431]
[1761480241071,0.87890995,198.12,198.03,4.98866431]
[1761480241270,0.87890995,198.12,198.0,2.82]
[1761480241271,5.58067008,198.12,198.04,4.98866431]
[1761480241473,5.58067008,198.12,198.0,2.82]
[1761480241474,5.58067008,198.12,198.05,4.98866431]
[1761480241671,5.58067008,198.12,198.06,4.98866431]
[1761480241870,0.87890995,198.12,198.07,4.98866431]
[1761480242076,31.95890995,198.12,198.08,4.98866431]
[1761480242369,31.95890995,198.12,198.09,4.98866431]
[1761480242569,31.95890995,198.12,198.04,2.72]
[1761480242770,31.95890995,198.12,198.05,4.99128623]
[1761480243074,31.95890995,198.12,198.06,4.99128623]
[1761480243374,31.95890995,198.12,198.07,4.99128623]
[1761480243677,63.37890995,198.12,198.08,4.99128623]
[1761480243976,63.37890995,198.12,198.09,4.99128623]
[1761480244173,63.37890995,198.12,198.1,4.99128623]
[1761480244378,63.37890995,198.12,198.11,4.99128623]
[1761480244379,0.87890995,198.12,198.11,4.99128623]
[1761480248585,4.70176013,198.2,198.11,7.71128623]
[1761480248883,4.70176013,198.2,198.12,4.99128623]
[1761480249085,4.70176013,198.19,198.13,4.99128623]
[1761480249279,4.70176013,198.18,198.14,4.99128623]
[1761480249586,4.70176013,198.16,198.07,2.69]
[1761480249780,4.70176013,198.14,197.92,2.69]
[1761480250178,4.70176013,198.13,197.92,2.69]
[1761480250375,7.98,198.12,197.92,2.69]
[1761480250576,4.70176013,198.11,197.92,2.69]
[1761480251083,4.70176013,198.09,197.92,2.69]
[1761480251683,0.87918751,198.05,197.92,2.69]
[1761480254992,17.72,198.09,197.92,2.69]
[1761480255285,22.42176013,198.09,197.92,2.69]
[1761480256283,17.72,198.09,197.92,2.69]
[1761480261592,17.72,198.09,197.94,2.69]
[1761480261793,17.72,198.09,197.96,2.69]
[1761480261994,17.72,198.09,197.98,2.69]
[1761480262190,17.72,198.09,198.0,2.69]
[1761480262396,17.72,198.09,198.01,7.50026965]
[1761480262596,17.72,198.09,198.02,4.81026965]
[1761480262791,17.72,198.09,198.03,4.81026965]
[1761480262997,17.72,198.09,198.05,2.69]
[1761480263201,17.72,198.09,198.07,2.69]
[1761480263501,17.72,198.09,198.08,4.81026965]
[1761480263804,22.2632,198.09,198.08,4.81026965]
[1761480265998,4.5432,198.09,198.08,4.81026965]
[1761480266903,4.5427,198.12,198.09,2.69]
[1761480267108,4.5427,198.12,198.1,7.50026965]
[1761480267299,4.5427,198.12,198.11,4.81026965]
[1761480268304,4.5427,198.12,198.11,6.965e-05]
[1761480271308,5.5427,198.12,198.11,6.965e-05]
[1761480271604,0.8787435,198.14,198.03,2.69]
[1761480272228,62.48,198.15,198.03,2.69]
[1761480273510,63.35875459,198.15,198.03,2.69]
[1761480274803,68.06051472,198.15,198.03,2.69]
[1761480281815,4.70176013,198.13,198.03,2.69]
[1761480282006,4.70176013,198.14,198.03,2.69]
[1761480283012,4.70176013,198.13,198.03,2.69]
[1761480283513,4.70176013,198.13,198.04,4.72239123]
[1761480283712,4.70176013,198.13,198.05,4.72239123]
[1761480283909,4.70176013,198.13,198.06,4.72239123]
[1761480284111,4.70176013,198.13,198.07,4.72239123]
[1761480284303,4.70176013,198.13,198.08,4.72239123]
[1761480284508,4.70176013,198.13,198.09,4.72239123]
[1761480284712,4.70176013,198.14,198.1,4.72239123]
[1761480284915,4.70176013,198.14,198.11,4.72239123]
[1761480285216,4.70176013,198.14,198.12,4.72239123]
[1761480285413,4.70176013,198.14,198.13,4.72239123]
[1761480286917,68.06051472,198.15,198.13,4.72239123]
[1761480287117,68.06051472,198.15,198.14,4.72239123]
[1761480287417,63.35875459,198.15,198.14,4.72239123]
[1761480288310,68.07169196,198.15,198.14,4.72239123]
[1761480290020,63.35875459,198.15,198.14,4.72239123]
[1761480290716,64.35875459,198.15,198.14,4.72239123]
[1761480290919,64.35875459,198.15,198.14,4.52016404]
[1761480291218,63.35875459,198.15,198.14,4.52016404]
[1761480291525,63.35875459,198.15,198.06,2.74]
[1761480291816,4.71329637,198.14,198.06,2.74]
[1761480295708,5.59205096,198.15,198.06,2.74]
[1761480295917,62.46,198.14,198.06,2.74]
[1761480296314,4.71329637,198.13,197.92,2.74]
[1761480296926,67.17329637,198.14,197.95,2.74]
[1761480297824,62.46,198.14,197.95,2.74]
[1761480298316,67.17329637,198.14,197.95,2.74]
[1761480299423,4.71329637,198.13,197.95,2.74]
[1761480301117,4.71329637,198.14,197.95,2.74]
[1761480301426,26.65329637,198.14,197.95,2.74]
[1761480301919,26.65329637,198.14,197.94,2.68]
[1761480302124,21.94,198.14,197.96,2.68]
[1761480302313,21.94,198.14,197.96,4.5459]
[1761480302510,21.94,198.14,197.97,2.68]
[1761480302916,21.94,198.14,197.99,2.68]
[1761480303112,21.94,198.14,198.01,2.68]
[1761480303317,21.94,198.14,198.03,2.68]
[1761480303522,21.94,198.14,198.04,7.35202167]
[1761480303723,21.94,198.14,198.05,7.35202167]
[1761480303918,21.94,198.14,198.06,4.67202167]
[1761480304119,21.94,198.14,198.07,4.67202167]
[1761480304320,21.94,198.14,198.08,4.67202167]
[1761480304521,21.94,198.14,198.1,2.68]
[1761480304728,21.94,198.14,198.11,4.67202167]
[1761480304914,21.94,198.14,198.12,4.67202167]
[1761480305236,21.94,198.14,198.13,4.67202167]
[1761480306622,26.65329637,198.14,198.13,4.67202167]
[1761480307016,21.94,198.14,198.13,4.67202167]
[1761480310215,62.44,198.14,198.13,4.67202167]
[1761480310427,63.44,198.14,198.13,4.67202167]
[1761480311026,6.29185956,198.16,198.13,4.67202167]
[1761480311235,62.44,198.14,198.08,2.74]
[1761480311532,4.72638197,198.12,198.09,4.44626386]
[1761480311831,4.72638197,198.13,198.1,4.44626386]
[1761480312033,4.72638197,198.13,198.11,4.44626386]
[1761480312224,4.72638197,198.13,198.12,4.44626386]
[1761480312922,67.16638197,198.14,198.12,4.44626386]
[1761480313123,67.16638197,198.14,198.13,4.44626386]
[1761480313625,62.44,198.14,198.13,4.44626386]
[1761480315925,4.72638197,198.16,198.13,4.44626386]
[1761480316132,4.72638197,198.16,197.99,4.5455]
[1761480316133,62.42,198.16,198.14,4.44626386]
[1761480316331,62.42,198.16,198.15,4.44626386]
[1761480316936,67.14638197,198.16,198.15,4.44626386]
[1761480319927,62.42,198.16,198.15,4.44626386]
[1761480320231,67.14638197,198.16,198.15,4.44626386]
[1761480322737,62.42,198.16,198.15,4.44626386]
[1761480327234,62.42,198.17,198.15,4.44626386]
[1761480327437,62.42,198.16,198.12,2.74]
[1761480327624,62.42,198.16,198.13,4.46603536]
[1761480327825,62.42,198.16,198.07,2.74]
[1761480327826,67.14638197,198.16,198.14,4.46603536]
[1761480328038,62.42,198.16,198.07,2.74]
[1761480328243,4.72103747,198.15,198.08,4.46888709]
[1761480328534,4.72103747,198.15,198.09,4.46888709]
[1761480328733,4.72103747,198.15,198.1,4.46888709]
[1761480328937,4.72103747,198.15,198.11,4.46888709]
[1761480329133,4.72103747,198.15,198.12,4.46888709]
[1761480329339,62.42,198.16,198.13,4.46888709]
[1761480329526,62.42,198.16,198.14,4.46888709]
[1761480329729,62.42,198.16,198.03,2.74]
[1761480329930,4.72247729,198.13,198.04,4.47086075]
[1761480330132,62.4,198.12,198.05,4.47086075]
[1761480330339,62.4,198.12,198.06,4.47086075]
[1761480330638,67.12247729,198.12,198.07,4.47086075]
[1761480330838,67.12247729,198.12,198.03,2.74]
[1761480330839,67.12247729,198.12,198.08,4.47086075]
[1761480331032,67.12247729,198.12,198.09,4.47086075]
[1761480331233,67.12247729,198.12,198.1,4.47086075]
[1761480331432,67.12247729,198.12,198.11,4.47086075]
[1761480332342,62.4,198.12,198.11,4.47086075]
[1761480334443,67.12247729,198.12,198.11,4.47086075]
[1761480335447,62.4,198.12,198.04,2.74]
[1761480335631,62.4,198.12,198.05,7.21130652]
[1761480335834,62.4,198.12,198.06,4.47130652]
[1761480336039,62.4,198.12,198.07,4.47130652]
[1761480336240,62.4,198.12,198.08,4.47130652]
[1761480336440,62.4,198.12,198.09,4.47130652]
[1761480336642,62.4,198.12,198.1,4.47130652]
[1761480336846,62.4,198.12,198.11,4.47130652]
[1761480338445,62.4,198.12,198.01,2.6]
[1761480338642,4.72166714,198.09,198.02,4.47093486]
[1761480338841,67.12166714,198.08,198.01,2.6]
[1761480339042,4.72166714,198.05,197.92,2.6]
[1761480339247,62.4,198.04,197.92,2.6]
[1761480339444,50.9,198.03,197.92,2.6]
[1761480341248,4.72166714,198.07,197.92,2.6]
[1761480341444,12.34,198.07,197.92,2.6]
[1761480343749,17.06166714,198.07,197.92,2.6]
[1761480344344,12.34,198.07,197.92,2.6]
[1761480344846,17.06166714,198.07,197.92,2.6]
[1761480346852,12.34,198.07,197.92,2.6]
[1761480347044,4.72166714,198.04,197.87,2.6]
[1761480347252,12.34,198.07,197.87,2.6]
[1761480347253,4.72166714,198.03,197.87,2.6]
[1761480347453,4.72166714,198.0,197.87,2.6]
[1761480347750,15.14,198.05,197.77,4.58673233]
[1761480347751,4.72166714,197.98,197.77,2.6]
[1761480347947,4.72166714,197.96,197.77,2.6]
[1761480348141,30.70166714,197.97,197.77,2.6]
[1761480348341,25.98,197.97,197.77,2.6]
[1761480348950,30.70166714,197.97,197.77,2.6]
[1761480349149,25.98,197.97,197.77,2.6]
[1761480349353,30.70166714,197.97,197.77,2.6]
[1761480349848,4.72166714,197.96,197.77,2.6]
[1761480350055,4.72166714,197.95,197.77,2.6]
[1761480350351,4.72166714,197.96,197.77,2.6]
[1761480350752,4.72166714,197.95,197.77,2.6]
[1761480351352,4.72166714,197.94,197.77,2.6]
[1761480351654,4.72166714,197.93,197.77,2.6]
[1761480351857,4.72166714,197.92,197.77,2.6]
[1761480352251,4.72166714,197.93,197.77,2.6]
[1761480352560,4.72166714,197.93,197.64,2.6]
[1761480352753,4.72166714,197.91,197.64,2.6]
[1761480353258,4.72166714,197.92,197.64,2.6]
[1761480353451,19.86166714,197.92,197.64,2.6]
[1761480354158,15.14,197.92,197.64,2.6]
[1761480354353,4.72166714,197.92,197.64,2.6]
[1761480354852,19.86166714,197.92,197.64,2.6]
[1761480355054,4.72166714,197.91,197.64,2.6]
[1761480355253,19.86166714,197.91,197.64,2.6]
[1761480355755,15.14,197.91,197.64,2.6]
[1761480355953,19.86166714,197.92,197.64,2.6]
[1761480356152,15.14,197.92,197.64,2.6]
[1761480356353,15.14,197.93,197.64,2.6]
[1761480356548,14.36,197.92,197.64,2.6]
[1761480357155,15.14,197.91,197.64,2.6]
[1761480357555,15.14,197.91,197.66,2.6]
[1761480357752,15.14,197.91,197.68,2.6]
[1761480357956,15.14,197.91,197.7,2.6]
[1761480358152,15.14,197.91,197.72,2.6]
[1761480358354,15.14,197.91,197.74,2.6]
[1761480358554,15.14,197.91,197.75,4.8649665]
[1761480358759,15.14,197.91,197.59,62.0]
[1761480358760,20.14,197.91,197.76,4.8649665]
[1761480358964,20.14,197.91,197.77,4.8649665]
[1761480359153,20.14,197.91,197.78,4.8649665]
[1761480359353,53.45,197.91,197.7,2.6]
[1761480359563,53.45,197.91,197.71,7.45468923]
[1761480359754,53.45,197.91,197.72,4.85468923]
[1761480359950,53.45,197.91,197.73,4.85468923]
[1761480360149,53.45,197.91,197.74,4.85468923]
[1761480360356,53.45,197.91,197.75,4.85468923]
[1761480360556,58.17166714,197.91,197.76,4.85468923]
[1761480360761,58.17166714,197.91,197.71,2.6]
[1761480360956,58.17166714,197.91,197.72,4.85472967]
[1761480360957,53.45,197.91,197.72,4.85472967]
[1761480361151,53.45,197.91,197.71,2.6]
[1761480361152,58.17166714,197.91,197.73,4.85472967]
[1761480361355,58.17166714,197.91,197.74,4.85472967]
[1761480361557,58.17166714,197.91,197.75,4.85472967]
[1761480361752,58.17166714,197.91,197.76,4.85472967]
[1761480361962,58.17166714,197.91,197.71,2.6]
[1761480362273,53.45,197.91,197.73,2.7]
[1761480362456,48.45,197.91,197.74,4.85148299]
[1761480362656,48.45,197.91,197.75,4.85148299]
[1761480362856,48.45,197.91,197.76,4.85148299]
[1761480363053,48.45,197.91,197.77,4.85148299]
[1761480363258,48.45,197.91,197.78,4.85148299]
[1761480363464,48.45,197.91,197.73,2.7]
[1761480363660,48.45,197.91,197.61,4.5541]
[1761480363661,52.58,197.9,197.75,2.7]
[1761480363862,15.14,197.89,197.76,4.84307898]
[1761480364058,15.14,197.89,197.77,4.84307898]
[1761480364264,15.14,197.89,197.78,4.84307898]
[1761480364464,15.14,197.89,197.75,2.7]
[1761480364665,15.14,197.89,197.76,4.84125412]
[1761480364872,15.14,197.89,197.77,4.84125412]
[1761480365058,15.14,197.89,197.78,4.84125412]
[1761480365260,15.14,197.9,197.75,2.7]
[1761480365461,15.14,197.88,197.76,4.83971681]
[1761480365663,15.14,197.88,197.77,4.83971681]
[1761480365858,15.14,197.88,197.78,4.83971681]
[1761480366063,15.14,197.88,197.75,2.7]
[1761480366263,15.14,197.88,197.76,4.83926123]
[1761480366457,15.14,197.88,197.77,4.83926123]
[1761480366662,15.14,197.88,197.78,4.83926123]
[1761480366869,15.14,197.88,197.79,4.83926123]
[1761480367169,15.14,197.88,197.75,2.7]
[1761480367361,15.14,197.88,197.76,4.8368092]
[1761480367562,15.14,197.9,197.78,2.7]
[1761480367873,62.46,197.89,197.8,2.7]
[1761480368074,62.46,197.89,197.81,4.8368092]
[1761480368262,62.46,197.89,197.58,0.88006575]
[1761480368263,62.46,197.89,197.83,2.7]
[1761480368467,62.46,197.89,197.58,0.88006575]
[1761480368468,202.06,197.99,197.85,2.59]
[1761480368667,202.06,197.99,197.87,2.59]
[1761480368668,62.46,197.98,197.87,2.59]
[1761480368859,62.46,197.98,197.88,7.4268092]
[1761480369061,62.46,197.98,197.89,4.8368092]
[1761480369269,62.46,197.98,197.9,4.8368092]
[1761480369571,62.46,197.98,197.91,4.81105246]
[1761480369775,62.46,197.98,197.88,2.59]
[1761480369971,62.46,197.98,197.89,4.8111738]
[1761480370268,62.46,197.98,197.9,4.8111738]
[1761480370470,62.46,197.98,197.91,4.8111738]
[1761480370669,62.46,197.98,197.88,2.59]
[1761480370869,62.46,197.98,197.89,4.81346968]
[1761480371071,62.46,197.98,197.9,4.81346968]
[1761480371266,62.46,197.98,197.91,4.81346968]
[1761480371466,62.46,197.98,197.88,2.59]
[1761480371666,62.46,197.98,197.89,4.81616745]
[1761480371865,62.46,197.98,197.9,4.81616745]
[1761480372066,202.06,197.99,197.91,4.81616745]
[1761480372263,62.46,197.98,197.92,4.81934271]
[1761480372570,62.46,197.98,197.94,2.59]
[1761480372768,62.46,197.98,197.95,7.40934271]
[1761480372975,202.06,197.99,197.96,7.40734953]
[1761480373166,4.72166714,198.08,197.86,2.59]
[1761480373373,19.89166714,198.06,197.88,2.59]
[1761480373570,19.08,198.05,197.88,2.59]
[1761480373770,4.72166714,198.08,197.88,2.59]
[1761480374065,9.50668171,198.15,197.88,2.59]
[1761480374066,28.4,198.07,197.88,2.59]
[1761480374270,4.72166714,198.13,197.88,2.59]
[1761480374470,62.74,198.12,197.88,2.59]
[1761480374875,62.74,198.11,197.88,2.59]
[1761480378466,4.72166714,198.14,197.88,2.59]
[1761480378778,62.7,198.1,197.88,2.59]
[1761480379979,4.5448,198.02,197.88,2.59]
[1761480380274,36.06,198.06,197.88,2.59]
[1761480380480,4.5451,198.01,197.89,2.59]
[1761480380671,9.085,198.13,197.89,2.59]
[1761480380871,62.66,198.12,197.89,2.59]
[1761480381069,62.66,198.12,197.91,2.59]
[1761480382167,70.6649,198.11,197.91,2.59]
[1761480382367,70.6751,198.08,197.91,2.59]
[1761480384082,4.5461,197.97,197.91,2.59]
[1761480385677,4.5464,197.95,197.91,2.59]
[1761480386185,4.547,197.93,197.91,2.59]
[1761480387180,62.62,198.02,197.91,2.59]
[1761480389990,9.0889,198.04,197.91,2.59]
[1761480390189,62.52,198.03,197.91,2.59]
[1761480393005,62.46,198.02,197.91,2.59]
[1761480395391,15.17,198.06,197.71,13.63724326]
[1761480395392,19.83256103,198.06,197.72,2.59]
[1761480395599,62.44,198.01,197.76,2.59]
[1761480396392,62.44,198.01,197.77,2.59]
[1761480400099,77.61,198.01,197.77,2.59]
[1761480400300,82.27256103,198.01,197.77,2.59]
[1761480400495,62.54,198.0,197.77,2.59]
[1761480400695,62.54,197.99,197.77,2.59]
[1761480400893,158.91,197.77,197.68,206.75364326]
[1761480401098,146.69297374,197.77,197.68,206.75364326]
[1761480401294,146.69297374,197.77,197.72,4.5516]
[1761480401498,146.69297374,197.77,197.68,206.75364326]
[1761480401902,146.69297374,197.77,197.69,62.52]
[1761480403206,146.69297374,197.77,197.71,62.0]
[1761480403509,146.69297374,197.77,197.72,1.43]
[1761480409009,140.37237116,197.77,197.73,4.95622937]
[1761480409205,140.37237116,197.77,197.74,4.95622937]
[1761480409399,140.37237116,197.77,197.75,4.95622937]
[1761480409600,140.37237116,197.77,197.76,4.95622937]
[1761480410696,140.37237116,197.77,197.73,4.5513]
[1761480410900,140.37237116,197.77,197.72,1.43]
[1761480411409,140.37237116,197.77,197.72,5.96364326]
[1761480411612,106.74647116,197.77,197.75,4.5509]
[1761480411808,69.72298174,197.77,197.76,67.79420325]
[1761480412200,69.72298174,197.77,197.76,129.79420325]
[1761480412402,69.72298174,197.77,197.76,129.79719736]
[1761480415310,69.72298174,197.77,197.76,135.78504103]
[1761480415904,7.72298174,197.77,197.76,129.79719736]
[1761480416103,5.68298174,197.77,197.76,129.79719736]
[1761480416809,4.5471,197.93,197.76,138.77896287]
[1761480417010,4.5471,197.93,197.81,4.56407523]
[1761480417211,4.5471,197.93,197.82,67.73719736]
[1761480417412,4.5471,197.93,197.83,4.97719736]
[1761480417708,4.5471,197.93,197.84,4.97719736]
[1761480418011,4.5471,197.93,197.85,4.97719736]
[1761480418205,4.5471,197.93,197.86,4.97719736]
[1761480418407,2.82,197.92,197.87,4.97719736]
[1761480418602,2.82,197.9,197.88,3.98419356]
[1761480418806,2.82,197.9,197.84,15.56]
[1761480419603,7.3677,197.9,197.84,15.56]
[1761480419807,2.82,197.89,197.84,15.56]
[1761480422706,2.69,197.96,197.84,15.56]
[1761480423115,2.69,197.94,197.84,15.56]
[1761480424006,7.237,197.93,197.84,15.56]
[1761480424201,2.69,197.92,197.84,15.56]
[1761480424419,2.69,197.92,197.8,4.56407523]
[1761480424712,2.69,197.88,197.76,66.56407523]
[1761480424906,2.69,197.88,197.79,62.62]
[1761480425217,2.69,197.87,197.79,62.62]
[1761480425604,4.5485,197.86,197.79,62.62]
[1761480425806,7.2385,197.86,197.79,62.62]
[1761480426117,2.69,197.85,197.79,62.62]
[1761480426415,7.2392,197.83,197.75,67.24407523]
[1761480426611,2.69,197.82,197.75,62.68]
[1761480428011,2.69,197.82,197.76,1.43]
[1761480431719,2.64,197.86,197.76,1.43]
[1761480432014,2.64,197.95,197.77,7.04407523]
[1761480432318,2.64,197.95,197.78,4.56407523]
[1761480432521,2.64,197.93,197.78,4.56407523]
[1761480432910,2.64,197.91,197.79,4.59024224]
[1761480433111,2.64,197.89,197.8,4.59024224]
[1761480433418,2.64,197.89,197.81,4.59024224]
[1761480433622,2.64,197.89,197.78,4.56407523]
[1761480433623,7.188,197.89,197.82,4.59024224]
[1761480433918,4.548,197.89,197.83,4.59024224]
[1761480434120,2.64,197.88,197.84,4.59024224]
[1761480434320,2.64,197.88,197.85,4.59024224]
[1761480434520,2.64,197.88,197.86,4.59024224]
[1761480434823,2.64,197.88,197.87,4.59024224]
[1761480438234,5.70252773,197.88,197.87,4.59024224]
[1761480438418,2.64,197.87,197.78,4.56407523]
[1761480438618,2.64,197.87,197.79,1.75]
[1761480439015,4.5482,197.88,197.79,6.31407523]
[1761480439710,2.64,197.9,197.79,6.31407523]
[1761480439711,7.1876,197.9,197.8,4.56407523]
[1761480440425,2.64,197.87,197.8,4.56407523]
[1761480440724,2.64,197.87,197.79,6.31407523]
[1761480442816,7.1885,197.86,197.79,6.31407523]
[1761480443017,2.64,197.85,197.79,6.31407523]
[1761480443218,2.64,197.85,197.79,1.75]
[1761480443420,2.64,197.84,197.79,1.75]
[1761480447228,2.64,197.84,197.8,1.43]
[1761480451932,4.5483,197.87,197.8,1.43]
[1761480451933,7.1883,197.87,197.8,1.43]
[1761480453024,4.66107547,197.87,197.81,4.97129525]
[1761480453220,4.5478,197.9,197.82,4.97129525]
[1761480453420,4.5478,197.9,197.83,4.97129525]
[1761480453626,2.64,197.89,197.84,4.97129525]
[1761480453827,2.64,197.89,197.85,4.97129525]
[1761480454030,2.64,197.88,197.86,4.97129525]
[1761480454330,2.64,197.88,197.87,4.97129525]
[1761480455218,2.64,197.91,197.87,4.97129525]
[1761480455424,2.64,197.91,197.88,4.97129525]
[1761480455626,2.64,197.91,197.83,4.56407523]
[1761480455627,2.64,197.9,197.89,4.97129525]
[1761480458040,4.5467,197.94,197.89,4.97129525]
[1761480458227,2.64,197.99,197.9,4.97129525]
[1761480458421,2.64,197.99,197.91,4.97129525]
[1761480458628,2.81,197.97,197.92,4.97129525]
[1761480458824,2.81,197.97,197.93,4.97129525]
[1761480459133,2.81,197.97,197.87,4.56407523]
[1761480459134,2.81,197.95,197.94,4.97129525]
[1761480460628,2.81,197.98,197.94,4.97129525]
[1761480460835,2.81,197.98,197.95,4.97129525]
[1761480461035,2.81,197.98,197.96,4.97129525]
[1761480461236,2.81,197.98,197.97,4.97129525]
[1761480462234,2.81,198.02,197.97,4.97129525]
[1761480462430,2.81,198.02,197.98,4.97129525]
[1761480462627,2.81,198.01,197.99,4.97129525]
[1761480462827,5.87252773,198.01,198.0,4.97129525]
[1761480463032,2.81,198.01,197.9,4.56407523]
[1761480463234,2.81,197.99,197.89,88.24407523]
[1761480463434,2.81,197.99,197.89,26.24407523]
[1761480463639,5.87252773,197.98,197.9,1.43]
[1761480463941,2.81,198.03,197.9,1.43]
[1761480464141,2.81,198.03,197.9,5.99407523]
[1761480464340,2.81,198.01,197.9,1.43]
[1761480464843,5.87252773,198.0,197.9,1.43]
[1761480465033,2.81,198.0,197.91,4.56407523]
[1761480465233,2.81,198.0,197.9,5.99407523]
[1761480466236,4.5446,198.03,197.9,5.99407523]
[1761480466440,7.60712773,198.03,197.91,66.56407523]
[1761480466640,2.81,198.04,197.93,4.56407523]
[1761480466839,5.87252773,198.04,197.93,4.56407523]
[1761480467044,2.81,198.03,197.92,4.56407523]
[1761480467240,2.81,198.03,197.9,1.43]
[1761480467241,2.81,198.03,197.91,4.56407523]
[1761480467434,2.81,198.03,197.92,4.56407523]
[1761480467638,2.81,198.02,197.91,4.56407523]
[1761480467846,2.81,198.01,197.9,44.81407523]
[1761480468141,7.3553,198.0,197.9,44.81407523]